fUSD/lending_fUSD_20240907
["ID","MTS","AMOUNT","RATE_DAILY","PERIOD"]
[337519792,1725733549999,-734.85072479,0.00049,30]
[337519793,1725733550036,-556.4645215,0.00049,120]
[337519794,1725733550073,-204.19826695,0.00049,120]
[337519795,1725733550110,-609.0,0.00049,120]
[337519796,1725733550147,-500.0,0.00049,120]
[337519797,1725733550183,-50000.0,0.00049,35]
[337519798,1725733550220,-1000000.0,0.00049,120]
[337519799,1725733550257,-4000.0,0.00049,120]
[337519800,1725733550293,-4453.67383981,0.00049,30]
[337519801,1725733550330,-16655.90686611,0.00049,30]
[337519802,1725733550366,-1000000.0,0.00049,120]
[337519803,1725733550405,-150000.0,0.00049,120]
[337519804,1725733550441,-151.0,0.00049178,120]
[337519805,1725733550478,-4300.0,0.00049196,30]
[337519806,1725733550513,-4800.0,0.00049196,30]
[337519807,1725733550552,-500.0,0.00049196,30]
[337519808,1725733550590,-150.0,0.00049198,120]
[337519809,1725733550631,-321.0,0.000492,120]
[337519810,1725733550669,-1000.0,0.000493,120]
[337519811,1725733550707,-2197.34,0.00049315,120]
[337519812,1725733550743,-3000.0,0.00049315,120]
[337519813,1725733550781,-1000.0,0.00049315,43]
[337519814,1725733550818,-191377.0,0.0004944,30]
[337519815,1725733550856,-828.33208712,0.0004949,120]
[337519816,1725733550896,-150.0,0.00049498,120]
[337519817,1725733550934,-558.43644705,0.000495,120]
[337519818,1725733550972,-1000000.0,0.000495,120]
[337519819,1725733551010,-1000000.0,0.000495,120]
[337519820,1725733551046,-36000.0,0.000495,30]
[337519821,1725733551081,-266.808759,0.00049589,30]
[337519822,1725733551118,-400000.0,0.00049783,120]
[337519823,1725733551155,-429.1853684,0.000498,120]
[337519824,1725733551194,-2197.34,0.00049863,120]
[337519825,1725733551231,-411.0,0.00049866,120]
[337519826,1725733551269,-411.0,0.00049886,120]
[337519827,1725733551308,-3127.61406942,0.000499,120]
[337519828,1725733551346,-1000.0,0.000499,120]
[337519829,1725733551385,-2211741.8403259,0.000499,30]
[337519830,1725733551426,-411.0,0.00049986,120]
[337519831,1725733551478,-1000.0,0.00049999,120]
[337519832,1725733551519,-50000.0,0.0005,40]
[337519833,1725733551560,-50000.0,0.0005,50]
[337519834,1725733551605,-150.0,0.0005,120]
[337519835,1725733551645,-1000000.0,0.0005,120]
[337519836,1725733551685,-1514.69535448,0.0005,60]
[337519837,1725733551724,-3065.20427177,0.0005,60]
[337519838,1725733551763,-680.79393445,0.0005,120]
[337519839,1725733551799,-3303.47720671,0.0005,120]
[337519840,1725733551837,-1219.05739001,0.0005,120]
[337519841,1725733551874,-980.67223066,0.0005,120]
[337519842,1725733552076,-500.0,0.0005,30]
[337519843,1725733552113,-2000.0,0.0005,120]
[337519844,1725733552150,-2000.0,0.0005,100]
[337519845,1725733552186,-2000.0,0.0005,100]
[337519846,1725733552220,-2000.0,0.0005,100]
[337519847,1725733552257,-2000.0,0.0005,100]
[337519848,1725733552292,-2000.0,0.0005,100]
[337519849,1725733552329,-500.0,0.0005,120]
[337519850,1725733552364,-700.0,0.0005,120]
[337519851,1725733552401,-1605.18746558,0.0005,120]
[337519852,1725733552438,-417636.09629197,0.0005,120]
[337519853,1725733576606,-900.0,0.00041482,30]
[337519854,1725733576643,-706.0895,0.00041688,30]
[337519855,1725733576680,-900.0,0.0004203,30]
[337519856,1725733576718,-706.0895,0.00042088,30]
[337519857,1725733576756,-900.0,0.00042578,30]
[337519858,1725733576792,-900.0,0.00043674,30]
[337519859,1725733576829,-900.0,0.0004477,30]
[337519860,1725733576872,-582363.90370803,0.0005,120]
[337519861,1725733576907,-153.00703239,0.0005,120]
[337519862,1725733576943,-150.0,0.0005,30]
[337519863,1725733576980,-1381.88315015,0.0005,120]
[337519864,1725733577016,-200.0,0.0005,120]
[337519865,1725733577052,-1000000.0,0.0005,120]
[337519866,1725733577088,-175.62474769,0.0005,120]
[337519867,1725733577125,-2646.1,0.0005,120]
[337519868,1725733577161,-1000000.0,0.0005,120]
[337519869,1725733577198,-868.97,0.0005,120]
[337519870,1725733577235,-1000000.0,0.0005,120]
[337519871,1725733577274,-13366.0,0.0005,30]
[337519872,1725733577309,-64222.0,0.0005,30]
[337519873,1725733577346,-1000000.0,0.0005,120]
[337519874,1725733577382,-685.2300129,0.00050136,120]
[337519875,1725733577420,-151.0,0.00050137,120]
[337519876,1725733577456,-4300.0,0.00050292,90]
[337519877,1725733577494,-4800.0,0.00050292,90]
[337519878,1725733577531,-500.0,0.00050292,90]
[337519879,1725733577568,-2197.34,0.0005041,120]
[337519880,1725733577607,-266.808759,0.00050411,30]
[337519881,1725733577644,-500000.0,0.0005044,30]
[337519882,1725733577682,-1000000.0,0.000505,120]
[337519883,1725733577724,-1000000.0,0.000505,120]
[337519884,1725733577760,-2300.0,0.0005084,90]
[337519885,1725733577797,-2900.0,0.0005084,90]
[337519886,1725733577834,-2197.34,0.00050958,120]
[337519887,1725733577870,-1000.0,0.00050999,120]
[337519888,1725733577910,-50000.0,0.00051,51]
[337519889,1725733577944,-48942.4086,0.00051,120]
[337519890,1725733577985,-1000000.0,0.00051,120]
[337519891,1725733578022,-1498.54452968,0.00051,120]
[337519892,1725733578061,-1061.32,0.00051,120]
[337519893,1725733578100,-1000.0,0.00051,120]
[337519894,1725733578139,-704760.34046016,0.00051,120]
[337519895,1725733581863,-900.0,0.00045866,30]
[337519896,1725733581901,-900.0,0.00046962,30]
[337519897,1725733581937,-900.0,0.00048058,30]
[337519898,1725733581980,-295239.65953984,0.00051,120]
[337519899,1725733582017,-1000000.0,0.00051,120]
[337519900,1725733582056,-257.531,0.00051,120]
[337519901,1725733582093,-257.532,0.00051,120]
[337519902,1725733582132,-257.532,0.00051,120]
[337519903,1725733582168,-257.532,0.00051,120]
[337519904,1725733582205,-257.532,0.00051,120]
[337519905,1725733582241,-151.0,0.00051096,120]
[337519906,1725733582278,-2000.0,0.000512,120]
[337519907,1725733582315,-280.52489923,0.0005123,62]
[337519908,1725733582350,-266.808759,0.00051233,30]
[337519909,1725733582386,-2197.92278403,0.0005127,61]
[337519910,1725733582423,-1000.0,0.000513,120]
[337519911,1725733582460,-1000000.0,0.000515,120]
[337519912,1725733582496,-1000000.0,0.000515,120]
[337519913,1725733582531,-10000.0,0.000515,120]
[337519914,1725733582568,-1000000.0,0.000515,120]
[337519915,1725733582607,-2197.34,0.00051506,120]
[337519916,1725733582643,-296.00307976,0.0005152,120]
[337519917,1725733582682,-331.30815077,0.0005198,120]
[337519918,1725733582721,-1000.0,0.00051999,120]
[337519919,1725733582760,-50000.0,0.00052,52]
[337519920,1725733582799,-1000000.0,0.00052,120]
[337519921,1725733582835,-995.78543601,0.00052,120]
[337519922,1725733582871,-10776.7867858,0.00052,120]
[337519923,1725733582906,-1000000.0,0.00052,120]
[337519924,1725733582941,-2874.99612515,0.00052,120]
[337519925,1725733582979,-50000.0,0.00052,120]
[337519926,1725733583015,-2858.97982459,0.00052,120]
[337519927,1725733583051,-500.0,0.00052,120]
[337519928,1725733583087,-1000.0,0.00052,120]
[337519929,1725733583123,-10213.8289762,0.00052,120]
[337519930,1725733583160,-649.81,0.00052,120]
[337519931,1725733583198,-1000000.0,0.00052,120]
[337519932,1725733583237,-1000000.0,0.00052,120]
[337519933,1725733583275,-551181.58663962,0.00052,120]
[337519942,1725733651765,-3361.36,0.00041095,120]
[337519943,1725733651790,-3361.36,0.00042465,120]
[337519944,1725733651812,-4000.0,0.00043561,30]
[337519945,1725733651834,-500.0,0.00043561,30]
[337519946,1725733651857,-4400.0,0.00043561,30]
[337519947,1725733651881,-3361.36,0.00043835,120]
[337519948,1725733651904,-262.36,0.00044001,30]
[337519949,1725733651926,-4000.0,0.00044109,30]
[337519950,1725733651948,-4400.0,0.00044109,30]
[337519951,1725733651970,-150.0,0.00044238,30]
[337519952,1725733651994,-150.0,0.00044421,30]
[337519953,1725733652017,-2570.0478056,0.00044444,120]
[337519954,1725733652040,-150.0,0.00044541,30]
[337519955,1725733652062,-4000.0,0.00044657,30]
[337519956,1725733652087,-4400.0,0.00044657,30]
[337519957,1725733652109,-500.0,0.00044657,30]
[337519958,1725733652132,-632.19,0.00044659,30]
[337519959,1725733652156,-670.97,0.00045,120]
[337519960,1725733652178,-2681.23,0.00045,120]
[337519961,1725733652200,-4000.0,0.00045205,30]
[337519962,1725733652224,-4400.0,0.00045205,30]
[337519963,1725733652248,-3361.36,0.00045205,120]
[337519964,1725733652273,-3852.11,0.000456,30]
[337519965,1725733652295,-500.0,0.00045753,30]
[337519966,1725733652317,-1000.0,0.00046,30]
[337519967,1725733652342,-329.56,0.000463,120]
[337519968,1725733652368,-4000.0,0.00046301,30]
[337519969,1725733652402,-4400.0,0.00046301,30]
[337519970,1725733652433,-3361.36,0.00046575,120]
[337519971,1725733652465,-324.51207361,0.00046704,40]
[337519972,1725733652498,-255.7764056,0.00046704,40]
[337519973,1725733652530,-224.572684,0.00046704,40]
[337519974,1725733652562,-285.36421616,0.00046704,40]
[337519975,1725733652591,-500.0,0.00046849,30]
[337519976,1725733652628,-4000.0,0.00047397,30]
[337519977,1725733652660,-4400.0,0.00047397,30]
[337519978,1725733652695,-3361.36,0.00047945,120]
[337519979,1725733652729,-500.0,0.00047945,30]
[337519980,1725733652761,-150.0,0.00048157,120]
[337519981,1725733652794,-4000.0,0.00048493,30]
[337519982,1725733652823,-4400.0,0.00048493,30]
[337519983,1725733652858,-500.0,0.00049041,30]
[337519984,1725733652890,-900.0,0.00049154,30]
[337519985,1725733652922,-3361.36,0.00049315,120]
[337519986,1725733652961,-4000.0,0.00049589,90]
[337519987,1725733652992,-4400.0,0.00049589,90]
[337519988,1725733653026,-3249.44084439,0.000499,120]
[337519989,1725733653060,-150.0,0.00049939,120]
[337519990,1725733653094,-1514.74899946,0.0005,60]
[337519991,1725733653127,-4601.01195224,0.0005,120]
[337519992,1725733653160,-3070.54961044,0.0005,60]
[337519993,1725733653191,-5601.20522636,0.0005,120]
[337519994,1725733653222,-4000.0,0.00050137,90]
[337519995,1725733653255,-4400.0,0.00050137,90]
[337519996,1725733653288,-500.0,0.00050137,90]
[337519997,1725733653319,-900.0,0.0005025,90]
[337519998,1725733653353,-3361.36,0.00050684,120]
[337519999,1725733653386,-4000.0,0.00050685,90]
[337520000,1725733653418,-500.0,0.00050685,90]
[337520001,1725733653451,-900.0,0.00050798,90]
[337520002,1725733653481,-641.909506,0.000508,30]
[337520003,1725733653513,-1000000.0,0.00051,120]
[337520004,1725733653544,-500.0,0.00051233,90]
[337520005,1725733653575,-2478.44768226,0.0005127,61]
[337520006,1725733653606,-400.0,0.00051346,90]
[337520007,1725733653639,-500.0,0.00051781,90]
[337520008,1725733653675,-6999.99999999,0.00051999,120]
[337520009,1725733653701,-35000.0,0.00052,30]
[337520010,1725733653733,-1797653.0,0.00052,30]
[337520011,1725733653761,-578873.5,0.00052,120]
[337520012,1725733653789,-1000000.0,0.00052,120]
[337520013,1725733653817,-2197.34,0.00052054,120]
[337520014,1725733653844,-3361.36,0.00052054,120]
[337520015,1725733653871,-266.808759,0.00052055,30]
[337520016,1725733653898,-151.0,0.00052055,120]
[337520017,1725733653925,-783.94,0.00052055,90]
[337520018,1725733654234,-1000.0,0.000523,120]
[337520019,1725733654258,-223.04715328,0.000523,33]
[337520020,1725733654283,-500000.0,0.0005244,30]
[337520021,1725733654309,-3000.0,0.0005244,30]
[337520022,1725733654333,-441256.32433393,0.000525,120]
[337520023,1725733654357,-3050.0,0.000525,120]
[337520024,1725733654384,-476596.79274768,0.000525,120]
[337520025,1725733660523,-150.0,0.00044575,30]
[337520026,1725733660547,-186.04381504,0.00045,30]
[337520027,1725733660572,-2656.75527323,0.000456,120]
[337520028,1725733660596,-1061.26464393,0.000456,120]
[337520029,1725733660631,-3305.04275476,0.0005,120]
[337520030,1725733660654,-4400.0,0.00050685,90]
[337520031,1725733660678,-246165.82,0.00051,120]
[337520032,1725733660703,-4000.0,0.00051233,90]
[337520033,1725733660727,-4400.0,0.00051233,90]
[337520034,1725733660751,-4000.0,0.00051781,90]
[337520035,1725733660775,-4400.0,0.00051781,90]
[337520036,1725733660798,-1078.40036771,0.000523,120]
[337520037,1725733660820,-217.16756199,0.000523,120]
[337520038,1725733660844,-4000.0,0.00052329,90]
[337520039,1725733660868,-4400.0,0.00052329,90]
[337520040,1725733660892,-523403.20725232,0.000525,120]
[337520041,1725733660915,-2197.34,0.00052602,120]
[337520042,1725733660937,-4878.87241,0.00052603,30]
[337520043,1725733661106,-437.81323831,0.000528,120]
[337520044,1725733661131,-2388.6766,0.000528,90]
[337520045,1725733661154,-266.808759,0.00052877,30]
[337520046,1725733661176,-1800.0,0.00052877,90]
[337520047,1725733661199,-4400.0,0.00052877,90]
[337520048,1725733661221,-56878.43822469,0.00052897,120]
[337520049,1725733661244,-347754.63321222,0.00052897,120]
[337520050,1725733661267,-1080.47240027,0.00052897,120]
[337520051,1725733661290,-150.0,0.0005299,40]
[337520052,1725733661313,-1000.0,0.00052999,120]
[337520053,1725733661338,-50000.0,0.00053,53]
[337520054,1725733661360,-10008.73713085,0.00053,120]
[337520055,1725733661384,-1000000.0,0.00053,120]
[337520056,1725733661407,-200.0,0.00053,120]
[337520057,1725733661431,-500.57,0.00053,40]
[337520058,1725733661454,-1000.0,0.00053,120]
[337520059,1725733661478,-270.71194089,0.00053,45]
[337520060,1725733661500,-1170.67457687,0.00053,120]
[337520061,1725733661525,-1000000.0,0.00053,120]
[337520062,1725733661550,-1000000.0,0.00053,120]
[337520063,1725733661573,-1000000.0,0.00053,120]
[337520064,1725733661595,-7487.46493392,0.00053,53]
[337520065,1725733661619,-151.0,0.00053014,120]
[337520066,1725733661646,-563.99685772,0.000531,120]
[337520067,1725733661670,-2197.34,0.0005315,120]
[337520068,1725733661695,-3361.36,0.00053424,120]
[337520069,1725733661720,-4000.0,0.00053425,90]
[337520070,1725733661744,-4400.0,0.00053425,90]
[337520071,1725733661768,-168.05694264,0.0005344,120]
[337520072,1725733661791,-106365.84953421,0.00053442,120]
[337520073,1725733661817,-323.86234645,0.00053449,120]
[337520074,1725733661841,-157.22328256,0.00053451,120]
[337520075,1725733661865,-2782.69494458,0.00053462,120]
[337520076,1725733661889,-106365.84953421,0.00053462,120]
[337520077,1725733661912,-168.05694264,0.00053462,120]
[337520078,1725733661935,-4816.02796413,0.00053465,120]
[337520079,1725733661957,-323.86234645,0.0005347,120]
[337520080,1725733661981,-1517.46795951,0.00053482,120]
[337520081,1725733662005,-106365.84953421,0.0005349,120]
[337520082,1725733662029,-1517.46795951,0.00053492,120]
[337520083,1725733662053,-4816.02796413,0.00053496,120]
[337520084,1725733662077,-767.78119838,0.00053496,120]
[337520085,1725733662100,-767.78119838,0.00053501,120]
[337520086,1725733662124,-767.78119838,0.00053507,120]
[337520087,1725733662148,-34316.30669749,0.00053511,120]
[337520088,1725733662171,-4816.02796413,0.00053512,120]
[337520089,1725733662194,-847.16981748,0.00053518,120]
[337520090,1725733662219,-106365.84953421,0.00053518,120]
[337520091,1725733662243,-1517.46795951,0.00053519,120]
[337520092,1725733662268,-106365.84953421,0.00053523,120]
[337520093,1725733662292,-34316.30669749,0.00053524,120]
[337520094,1725733662315,-34316.30669749,0.00053533,120]
[337520095,1725733662339,-847.16981748,0.00053533,120]
[337520096,1725733662363,-4816.02796413,0.00053534,120]
[337520097,1725733662387,-157.22328256,0.00053542,120]
[337520098,1725733662409,-323.86234645,0.00053546,120]
[337520099,1725733662433,-323.86234645,0.00053547,120]
[337520100,1725733662457,-157.22328256,0.00053548,120]
[337520101,1725733662481,-847.16981748,0.00053552,120]
[337520102,1725733662504,-2782.69494458,0.00053552,120]
[337520103,1725733662528,-168.05694264,0.00053553,120]
[337520104,1725733662552,-2782.69494458,0.00053553,120]
[337520105,1725733662576,-323.86234645,0.00053559,120]
[337520106,1725733662600,-767.78119838,0.00053559,120]
[337520107,1725733662622,-157.22328256,0.0005356,120]
[337520108,1725733662650,-168.05694264,0.00053563,120]
[337520109,1725733662673,-767.78119838,0.00053566,120]
[337520110,1725733662696,-2782.69494458,0.00053566,120]
[337520111,1725733662723,-847.16981748,0.0005357,120]
[337520112,1725733662747,-3757.90687452,0.00053578,120]
[337520113,1725733666784,-154.23739283,0.000437,60]
[337520114,1725733666807,-678.5196741,0.000437,120]
[337520115,1725733666833,-1259.04131676,0.00046,120]
[337520116,1725733666857,-187.34372859,0.00048,60]
[337520117,1725733666886,-150.0,0.00049589,90]
[337520118,1725733666911,-364.65018187,0.0005198,120]
[337520119,1725733666934,-174.79691594,0.000525,120]
[337520120,1725733666957,-1058.12108961,0.00053578,120]
[337520121,1725733666980,-2782.69494458,0.00053581,120]
[337520122,1725733667003,-1517.46795951,0.00053582,120]
[337520123,1725733667026,-1517.46795951,0.00053586,120]
[337520124,1725733667050,-157.22328256,0.00053587,120]
[337520125,1725733667073,-168.05694264,0.00053588,120]
[337520126,1725733667099,-847.16981748,0.00053592,120]
[337520127,1725733667121,-34316.30669749,0.00053593,120]
[337520128,1725733667144,-34316.30669749,0.00053599,120]
[337520129,1725733667167,-2197.34,0.00053698,120]
[337520130,1725733667192,-266.808759,0.00053699,30]
[337520131,1725733667216,-2361.8044,0.000538,90]
[337520132,1725733667240,-200.0,0.00053806,120]
[337520133,1725733667263,-98226.51,0.0005389,120]
[337520134,1725733667287,-296982.05671138,0.0005394,120]
[337520135,1725733667311,-151.0,0.00053973,120]
[337520136,1725733667335,-4000.0,0.00053973,90]
[337520137,1725733667359,-1371.4214154,0.00053973,90]
[337520138,1725733667382,-1000.0,0.00053999,120]
[337520139,1725733667407,-50000.0,0.00054,54]
[337520140,1725733667429,-2175.08222092,0.00054,120]
[337520141,1725733667455,-151.0,0.00054,120]
[337520142,1725733667479,-326.35686631,0.00054,35]
[337520143,1725733667504,-1000000.0,0.00054,120]
[337520144,1725733667529,-1807.89123,0.00054,30]
[337520145,1725733667552,-1832.71058249,0.00054,36]
[337520146,1725733667575,-202758.95933963,0.00054,45]
[337520147,1725733667599,-50000.0,0.00054,120]
[337520148,1725733667622,-251.20949779,0.00054,120]
[337520149,1725733667649,-500.0,0.00054,120]
[337520150,1725733667672,-600.0,0.00054,120]
[337520151,1725733667697,-6644.14843134,0.00054,120]
[337520152,1725733667722,-100000.0,0.00054,30]
[337520153,1725733667746,-790.50891009,0.00054,34]
[337520154,1725733667770,-5003.79653826,0.00054,45]
[337520155,1725733667793,-1038.27900987,0.00054,45]
[337520156,1725733667818,-1000000.0,0.00054,120]
[337520157,1725733667843,-2810.28270577,0.00054,45]
[337520158,1725733667869,-4156.61058964,0.00054,40]
[337520159,1725733667892,-1000000.0,0.00054,120]
[337520160,1725733667916,-5000.0,0.00054025,60]
[337520161,1725733667940,-2177.41,0.00054026,60]
[337520162,1725733667963,-780.26,0.00054028,60]
[337520163,1725733667987,-395.65,0.00054066,60]
[337520164,1725733668010,-5000.0,0.00054074,60]
[337520165,1725733668034,-262.36,0.00054116,60]
[337520166,1725733668058,-5000.0,0.00054133,60]
[337520167,1725733668083,-5000.0,0.00054202,60]
[337520168,1725733668108,-5000.0,0.00054213,60]
[337520169,1725733668133,-1820.16,0.00054216,60]
[337520170,1725733668162,-5000.0,0.00054245,60]
[337520171,1725733668188,-2197.34,0.00054246,120]
[337520172,1725733668214,-5000.0,0.00054253,60]
[337520173,1725733668239,-157.51,0.00054258,60]
[337520174,1725733668264,-5000.0,0.00054265,60]
[337520175,1725733668291,-4794.8,0.00054296,60]
[337520176,1725733668316,-5000.0,0.00054413,60]
[337520177,1725733668341,-5000.0,0.0005443,60]
[337520178,1725733668367,-500000.0,0.0005444,30]
[337520179,1725733668391,-1559.55,0.0005445,120]
[337520180,1725733668417,-320.954751,0.000545,30]
[337520181,1725733668442,-5000.0,0.00054503,60]
[337520182,1725733668468,-5000.0,0.00054518,60]
[337520183,1725733668494,-266.808759,0.00054521,30]
[337520184,1725733668518,-3319.63288461,0.00054521,90]
[337520185,1725733668542,-4096.17,0.00054538,60]
[337520186,1725733668566,-4292.0,0.00054583,60]
[337520187,1725733668590,-5000.0,0.00054602,60]
[337520188,1725733668617,-1324.78,0.00054624,60]
[337520189,1725733668647,-782.19,0.00054629,60]
[337520190,1725733668670,-5000.0,0.00054634,60]
[337520191,1725733668695,-3306.53,0.00054655,60]
[337520192,1725733668720,-5000.0,0.00054658,60]
[337520193,1725733668742,-5000.0,0.00054658,60]
[337520194,1725733668765,-1500.0,0.0005466,120]
[337520195,1725733668789,-14360.17741774,0.000547,120]
[337520196,1725733668815,-2217.96,0.00054714,60]
[337520197,1725733668844,-5000.0,0.00054761,60]
[337520198,1725733668868,-5000.0,0.00054775,60]
[337520199,1725733668893,-1006.0,0.0005479,120]
[337520200,1725733668917,-2197.34,0.00054794,120]
[337520201,1725733668943,-3361.36,0.00054794,120]
[337520202,1725733668969,-5007.31,0.00054794,120]
[337520203,1725733668996,-5007.31,0.00054794,120]
[337520204,1725733669021,-5007.31,0.00054794,120]
[337520205,1725733669045,-5007.31,0.00054794,120]
[337520206,1725733669069,-5007.31,0.00054794,120]
[337520207,1725733669247,-5007.31,0.00054794,120]
[337520208,1725733669273,-5007.31,0.00054794,120]
[337520209,1725733669297,-5007.31,0.00054794,120]
[337520210,1725733669320,-5007.31,0.00054794,120]
[337520211,1725733669343,-5007.31,0.00054794,120]
[337520212,1725733669367,-5007.31,0.00054794,120]
[337520213,1725733669390,-5007.31,0.00054794,120]
[337520214,1725733669414,-5007.31,0.00054794,120]
[337520215,1725733669441,-5007.31,0.00054794,120]
[337520216,1725733669466,-5007.31,0.00054794,120]
[337520217,1725733669493,-5007.31,0.00054794,120]
[337520218,1725733669518,-5007.31,0.00054794,120]
[337520219,1725733669548,-5007.31,0.00054794,120]
[337520220,1725733669573,-5007.31,0.00054794,120]
[337520221,1725733669597,-5007.31,0.00054794,120]
[337520222,1725733669624,-5007.31,0.00054794,120]
[337520223,1725733669654,-5007.31,0.00054794,120]
[337520224,1725733669681,-5007.31,0.00054794,120]
[337520225,1725733669707,-5007.50263634,0.00054794,120]
[337520226,1725733669735,-1927.74,0.00054794,120]
[337520227,1725733669761,-1927.74,0.00054794,120]
[337520228,1725733669791,-1927.74,0.00054794,120]
[337520229,1725733669815,-1927.74,0.00054794,120]
[337520230,1725733669839,-1927.74,0.00054794,120]
[337520231,1725733669864,-1927.74,0.00054794,120]
[337520232,1725733669887,-1927.74,0.00054794,120]
[337520233,1725733669912,-1927.74,0.00054794,120]
[337520234,1725733669936,-1927.74,0.00054794,120]
[337520235,1725733669959,-1927.74,0.00054794,120]
[337520236,1725733669982,-1927.74,0.00054794,120]
[337520237,1725733670006,-1927.74,0.00054794,120]
[337520238,1725733670033,-1927.74,0.00054794,120]
[337520239,1725733670056,-1927.74,0.00054794,120]
[337520240,1725733670078,-1927.74,0.00054794,120]
[337520241,1725733670104,-1927.74,0.00054794,120]
[337520242,1725733670128,-1927.74,0.00054794,120]
[337520243,1725733670152,-1927.74,0.00054794,120]
[337520244,1725733670179,-1927.74,0.00054794,120]
[337520245,1725733670204,-1927.74,0.00054794,120]
[337520246,1725733670228,-1927.74,0.00054794,120]
[337520247,1725733670253,-1927.74,0.00054794,120]
[337520248,1725733670277,-1927.74,0.00054794,120]
[337520249,1725733670301,-1927.83647066,0.00054794,120]
[337520250,1725733670324,-1000.0,0.00054795,45]
[337520251,1725733670347,-1000.0,0.000548,120]
[337520252,1725733670371,-1000.0,0.000548,120]
[337520253,1725733670396,-1000.0,0.000548,120]
[337520254,1725733670421,-1000.0,0.000548,120]
[337520255,1725733670445,-774.7555176,0.000548,30]
[337520256,1725733670468,-5000.0,0.00054808,60]
[337520257,1725733670493,-1252.96,0.00054812,60]
[337520258,1725733670518,-5000.0,0.00054848,60]
[337520259,1725733670546,-5000.0,0.00054855,60]
[337520260,1725733670569,-1394.93,0.00054863,60]
[337520261,1725733670592,-266.1089732,0.000549,30]
[337520262,1725733670614,-5000.0,0.00054916,60]
[337520263,1725733670642,-151.0,0.00054932,120]
[337520264,1725733670666,-5000.0,0.00054934,60]
[337520265,1725733670691,-2642.75,0.00054989,60]
[337520266,1725733670718,-5000.0,0.00054992,60]
[337520267,1725733670742,-1000.0,0.00054999,120]
[337520268,1725733670768,-50000.0,0.00055,55]
[337520269,1725733670796,-50264.70440781,0.00055,30]
[337520270,1725733670820,-150.0,0.00055,40]
[337520271,1725733670844,-10374.0,0.00055,30]
[337520272,1725733670867,-150.22726288,0.00055,120]
[337520273,1725733670891,-10884.30480005,0.00055,120]
[337520274,1725733670915,-1335.70630634,0.00055,120]
[337520275,1725733670939,-208.22338708,0.00055,120]
[337520276,1725733670964,-1000000.0,0.00055,120]
[337520277,1725733670987,-13165.25910194,0.00055,120]
[337520278,1725733671010,-1000.0,0.00055,120]
[337520279,1725733671035,-1500.0,0.00055,120]
[337520280,1725733671059,-1058.0,0.00055,120]
[337520281,1725733671081,-200.0,0.00055,120]
[337520282,1725733671104,-250.222803,0.00055,100]
[337520283,1725733671130,-86785.2327119,0.00055,120]
[337520284,1725733671906,422.22996907,0.00031258,120]
[337520285,1725733674166,-420.6146,0.0004222,30]
[337520286,1725733674191,-1050.09470707,0.00043,30]
[337520287,1725733674218,-500.0,0.00043835,120]
[337520288,1725733674251,-153.00703239,0.0005,120]
[337520289,1725733674430,-4174.21999551,0.0005,120]
[337520290,1725733674461,-913214.7672881,0.00055,120]
[337520291,1725733674486,-3000.0,0.000551,90]
[337520292,1725733674511,-2197.34,0.00055342,120]
[337520293,1725733674540,-266.808759,0.00055342,30]
[337520294,1725733674564,-2971.9,0.00055616,120]
[337520295,1725733674587,-2197.34,0.0005589,120]
[337520296,1725733674612,-151.0,0.0005589,120]
[337520297,1725733674637,-1000.0,0.00055999,120]
[337520298,1725733674663,-50000.0,0.00056,56]
[337520299,1725733674689,-500.0,0.00056,120]